Cogmind - Beta 15 @@@ ROGUE MODE // 2025.05.30 @ 18:31:38 Player: the Result: Destroyed by H-55 Commando with Gauss Rifle Performance ------------- Evolutions (3) 1500 Regions Visited (9) 1800 Robots Destroyed (233) 1165 Value Destroyed (6587) 6587 Prototype IDs (11) 220 Alien Tech Used (0) 0 Bonus (1322) 1322 TOTAL SCORE: 12594 Bonus ------- High Alert Combat Kills 714 Follower Combat Kills 805 Friendly Fire -197 Cogmind --------- Core Integrity 0/700 Matter 49/300 Energy 35/100 System Corruption 7% Temperature Cool (22) Movement Treading (250) Ox1 Location -7/Factory Parts ------- > --- POWER (2) -------- (None) > --- PROPULSION (3) --- Armored Treads > --- UTILITY (6) ------ Large Storage Unit Improved Signal Interpreter Makeshift Salvage Targeting Computer Advanced Targeting Computer > --- WEAPON (2) ------- Advanced EMP Blaster > --- INVENTORY (15) --- Armored Treads Armored Treads Cryofiber Web Improved Sensor Array Advanced Terrain Scan Processor Transmission Jammer Gatling Laser Plasma Cannon Plasma Cannon Advanced EMP Blaster Peak State ------------ > --- POWER ------------ Heavy Ion Engine Improved Deuterium Engine > --- PROPULSION ------- Armored Treads Armored Treads Armored Treads > --- UTILITY ---------- Large Storage Unit Improved Sensor Array Improved Signal Interpreter Makeshift Salvage Targeting Computer Advanced Targeting Computer Improved Medium Armor Plating > --- WEAPON ----------- Enhanced Autogun Enhanced Autogun > --- INVENTORY -------- Deuterium Engine Advanced Treads Advanced Treads Cryofiber Web Cryofiber Web Advanced Terrain Scan Processor Transmission Jammer Hardlight Generator Gatling Laser Plasma Cannon Plasma Cannon Gauss Rifle Gauss Rifle Advanced EMP Blaster Advanced EMP Blaster [Rating: 47] Favorites ----------- Power Cooled Ion Engine Engine Cooled Ion Engine Power Core Light Nuclear Core Propulsion Advanced Treads Treads Advanced Treads Wheel Wheel Hover Unit Improved Hover Unit Utility Large Storage Unit Device Sensor Array Storage Large Storage Unit Processor Advanced Targeting Computer Hackware Hacking Suite Protection Improved Light Armor Plating Weapon Light EM Pulse Cannon Energy Gun Improved EM Shotgun Energy Cannon Light EM Pulse Cannon Ballistic Gun Enhanced Autogun Ballistic Cannon Improved Light Cannon Launcher Grenade Launcher Special Weapon Mining Laser Build | -11 -10 -10 -9 -9 -9 -8 -8 -8 -7 ------- Run | Yrd Mat Min Mat Min Exi Min Mat Sto Fac Slots Evolved 6 | . . . 2 . . . 2 . 2 Power 1 | . . . . . . . . . 1 Propulsion 1 | . . . . . . . . . 1 Utility 4 | . . . 2 . . . 2 . . Weapon . | . . . . . . . . . . Parts Attached 149 | 7 30 9 34 1 1 2 33 17 15 Power 24 | 1 5 1 6 . 1 1 5 1 3 Engine 22 | 1 5 1 5 . 1 1 4 1 3 Core 2 | . . . 1 . . . 1 . . Reactor . | . . . . . . . . . . Propulsion 39 | 2 8 2 8 . . 1 7 5 6 Treads 34 | . 5 2 8 . . 1 7 5 6 Leg . | . . . . . . . . . . Wheel 2 | 2 . . . . . . . . . Hover 3 | . 3 . . . . . . . . Flight . | . . . . . . . . . . Utility 41 | 2 12 4 6 1 . . 9 3 4 Device 23 | 1 6 3 2 . . . 6 2 3 Storage 4 | 1 3 . . . . . . . . Processor 8 | . 2 1 3 . . . 2 . . Hackware 1 | . . . 1 . . . . . . Protection 5 | . 1 . . 1 . . 1 1 1 Artifact . | . . . . . . . . . . Weapon 45 | 2 5 2 14 . . . 12 8 2 Energy Gun 18 | 1 1 1 10 . . . 4 1 . Energy Cannon 6 | . . . 3 . . . 3 . . Ballistic Gun 11 | 1 2 . . . . . 4 3 1 Ballistic Cannon 2 | . . . 1 . . . 1 . . Launcher 7 | . 1 1 . . . . . 4 1 Special Weapon 1 | . 1 . . . . . . . . Impact Weapon . | . . . . . . . . . . Slashing Weapon . | . . . . . . . . . . Piercing Weapon . | . . . . . . . . . . Special Melee Weapon . | . . . . . . . . . . Unidentified Prototypes 8 | . . . 2 . . . 4 2 . Corrupted Parts 1 | . . . . . . . 1 . . System Corruption 1 | . . . . . . . 1 . . Parts Lost 26 | . 2 4 1 . . . 8 . 11 Power 5 | . 1 . . . . . 2 . 2 Propulsion 8 | . 1 2 . . . . 2 . 3 Utility 6 | . . 1 . . . . 2 . 3 Weapon 7 | . . 1 1 . . . 2 . 3 Highest Loss Streak 11 | . 2 2 1 . . . 3 . 11 To Critical Strikes . | . . . . . . . . . . Average Backups 13 | 3 12 14 14 15 15 14 13 14 14 Power 1 | . 1 1 1 2 1 1 1 1 . Propulsion 2 | 1 3 2 2 3 3 2 1 2 2 Utility 4 | . 3 5 5 6 6 7 5 3 2 Weapon 5 | . 4 4 4 4 4 4 5 6 7 Tool/Special . | . . . . . . . . . . Unused Backups 52 | . 4 . 19 . . 1 9 8 11 Power 4 | . . . 2 . . . 2 . . Propulsion 10 | . 1 . 2 . . . 2 3 2 Utility 17 | . . . 8 . . 1 2 3 3 Weapon 21 | . 3 . 7 . . . 3 2 6 Tool/Special . | . . . . . . . . . . Average Slot Usage (%) 99 | . 99 99 99 100 100 100 98 99 98 Engine 11 | . 13 14 10 11 11 11 8 9 14 Treads 22 | . 26 28 22 22 22 22 17 18 22 Device 11 | . 13 7 12 11 11 11 8 15 6 Storage 10 | . 14 14 11 11 11 11 9 8 7 Processor 17 | . . 1 20 22 22 22 27 27 23 Protection 2 | . . 4 . . . . 8 2 6 Energy Gun 7 | . 4 19 19 . . . 8 . . Energy Cannon 4 | . . . 2 21 22 22 5 . . Ballistic Gun 8 | . 22 3 . . . . 3 17 13 Peak Build Rating 47 | 7 10 12 26 24 22 22 37 41 47 Average Rating 23 | 5 8 9 20 22 22 21 33 37 42 On Entrance 18 | . 7 8 11 22 22 22 22 36 37 Naked Turns . | . . . . . . . . . . Heaviest Build 61 | 14 30 32 37 39 37 37 44 47 61 Greatest Support 69 | 26 46 46 46 44 44 45 45 46 69 Greatest Overweight (x) 1 | . 1 1 . . . . . 1 . Average Overweight (x) . | . . . . . . . . . . Largest Inventory Capacity 15 | 8 15 15 15 15 15 15 15 15 15 Average Capacity 14 | 7 13 15 15 15 15 15 15 14 15 Most Carried 15 | 6 15 15 15 15 15 15 15 15 15 Average Carried 14 | 3 12 14 14 15 15 14 14 14 14 Final Capacity 15 | 8 15 15 15 15 15 15 15 15 15 Final Carried 15 | 6 15 14 15 15 15 15 15 15 10 Class Distribution -------------------- 79% | Mutant 19% | Commander-Mutant Dominant Class ---------------- Mutant | -10/Materials Mutant | -10/Mines Mutant | -9/Materials Mutant | -9/Mines Commander-Mutant | -9/Exiles Commander-Mutant | -8/Mines Mutant | -8/Materials Commander-Mutant | -8/Storage Mutant | -7/Factory Resources | -11 -10 -10 -9 -9 -9 -8 -8 -8 -7 ----------- Run | Yrd Mat Min Mat Min Exi Min Mat Sto Fac Matter Collected 4845 | 279 568 487 748 61 . 75 748 1021 858 Remotely . | . . . . . . . . . . Salvage Created 9444 | 148 757 472 1913 100 . . 2514 1411 2129 Parts 564 | 7 58 23 111 14 . . 141 79 131 Haulers Intercepted 22 | . 2 . 6 . . . 6 6 2 Recyclers Shooed 7 | 1 1 . 3 . . . . . 2 Parts Field Recycled . | . . . . . . . . . . Retrieved Matter . | . . . . . . . . . . Parts Self-Destructed . | . . . . . . . . . . Prevented . | . . . . . . . . . . Kills | -11 -10 -10 -9 -9 -9 -8 -8 -8 -7 ------- Run | Yrd Mat Min Mat Min Exi Min Mat Sto Fac Combat Hostiles Destroyed 156 | . 16 13 37 7 . . 36 22 25 Guns 102 | . 15 11 32 . . . 22 11 11 Cannons 6 | . . . 1 1 . . 4 . . AOE 41 | . . 2 2 6 . . 7 10 14 Classes Destroyed 18 | 2 6 1 2 . . . 4 1 2 Worker 10 | . 2 . 1 . . . 2 . 5 Builder 8 | . 3 1 . . . . . 1 3 Tunneler 10 | 3 1 3 . 1 . . . . 2 Hauler 22 | . 2 . 6 . . . 6 6 2 Recycler 10 | 1 1 1 3 . . . . 1 3 Operator 1 | . . . 1 . . . . . . Watcher 17 | . 3 . 5 . . . 5 2 2 Swarmer 35 | . 8 3 6 6 . . 4 4 4 Grunt 70 | . 8 6 21 1 . . 17 7 10 Brawler 4 | . . . . . . . 2 1 1 Duelist 3 | . . . . . . . 3 . . Protector 4 | . . . . . . . 1 1 2 Sentry 29 | . . . 10 . . . 8 6 5 Demolisher 1 | . . . . . . . . 1 . Specialist 1 | . . . . . . . . . 1 Hunter 5 | . . . . . . . 2 2 1 Programmer 3 | . . . . . . . . . 3 Assembled 4 | . . 4 . . . . . . . Best Kill Streak 11 | 4 4 3 7 4 . . 8 7 11 Combat Bots Only 8 | . 4 3 6 4 . . 8 7 6 Max Kills in Single Turn 6 | 1 1 2 2 3 . . 2 4 6 Gunslinging . | . . . . . . . . . . Exploded 4 | . . 2 2 3 . . 2 4 4 Melee . | . . . . . . . . . . Uniques/NPCs Destroyed . | . . . . . . . . . . Combat | -11 -10 -10 -9 -9 -9 -8 -8 -8 -7 -------- Run | Yrd Mat Min Mat Min Exi Min Mat Sto Fac Hostile Shots Fired 976 | . 85 62 142 12 . . 164 62 449 Missed 308 | . 25 9 46 2 . . 53 11 162 Hits 668 | . 60 53 96 10 . . 111 51 287 Melee 9 | . . 2 . . . . 7 . . Projectile 659 | . 60 51 96 10 . . 104 51 287 AOE 2 | . . . . . . . . 2 . Critical Strikes 19 | . . 2 2 . . . 5 3 7 Part Disruptions 3 | . . . . . . . . . 3 Damage Taken 8881 | . 595 770 1211 143 . 45 1873 777 3467 Core 1394 | . 101 115 212 . . . 206 48 712 Absorbed by Shields 476 | . . . . . . . . . 476 Redirected to Shielding 15 | . . 15 . . . . . . . Regen/Repaired (Parts) 837 | . 48 . 46 . . . 378 350 15 Core Remaining (%) 53 | 100 . 13 . . . 47 . 53 . Volleys Fired 587 | 9 87 53 142 9 1 5 110 74 97 Largest 2 | 2 2 2 2 2 2 2 2 2 2 Hottest 130 | 70 100 100 130 112 112 112 112 72 72 Shots Fired 1090 | 18 165 97 250 12 2 10 214 136 186 Gun 939 | 18 160 90 225 . . . 163 119 164 Cannon 95 | . . . 24 8 2 10 51 . . Launcher 52 | . 1 7 1 4 . . . 17 22 Special 4 | . 4 . . . . . . . . Kinetic 444 | 9 76 18 23 . . . 35 119 164 Thermal 398 | 9 88 72 167 . . . 62 . . Explosive 13 | . 1 7 1 4 . . . . . Electromagnetic 235 | . . . 59 8 2 10 117 17 22 Robot Hit Streak 16 | 7 10 6 15 2 . 4 16 10 16 Robot Miss Streak 8 | 1 4 5 7 2 . . 3 8 5 Penetration Max 1 | . . . . . . . 1 . 1 Secondary Targets 17 | . 3 2 3 . . . 7 . 2 Max Gunslinging Chain 1 | . 1 1 1 . . . 1 . 1 Shots Hit Robots 745 | 12 92 50 180 6 . 2 168 96 139 Core Hits 522 | 6 42 33 150 10 . . 95 65 121 Critical Kills 2 | . . 1 . . . . . 1 . Critical Parts Destroyed 3 | . 1 . . . . . . 1 1 Critical Strikes 30 | 1 5 7 12 . . . 2 2 1 Burn 25 | 1 4 6 12 . . . 2 . . Destroy 5 | . 1 1 . . . . . 2 1 Melee Attacks . | . . . . . . . . . . Impact . | . . . . . . . . . . Slashing . | . . . . . . . . . . Piercing . | . . . . . . . . . . Sneak Attacks . | . . . . . . . . . . Combat Hostiles . | . . . . . . . . . . Follow-up Attacks . | . . . . . . . . . . Damage Inflicted 18381 | 120 1156 827 2922 560 . 80 4126 3025 5565 Guns 11327 | 120 1133 626 2730 . . . 2718 1647 2353 Cannons 992 | . . . 20 132 . 45 795 . . Explosions 5982 | . 18 193 150 419 . . 612 1378 3212 Melee . | . . . . . . . . . . Ramming 80 | . 5 8 22 9 . 35 1 . . Kinetic 5338 | 45 569 87 . . . . 637 1647 2353 Thermal 5597 | 75 564 539 2055 48 . . 1545 44 727 Explosive 589 | . 18 193 7 371 . . . . . Electromagnetic 6777 | . . . 838 132 . 45 1943 1334 2485 Impact . | . . . . . . . . . . Slashing . | . . . . . . . . . . Piercing . | . . . . . . . . . . Highest Corruption 7 | . . . . . . . 1 . 7 Average Corruption 1 | . . . . . . . 1 . 1 Corruption Purged 1 | . . . . . . . 1 . . Corruption Blocked . | . . . . . . . . . . Effects 35 | . . . . . . . 21 . 14 Message Errors 7 | . . . . . . . 3 . 4 Matter Fused 9 | . . . . . . . 6 . 3 Heat Flow Errors 3 | . . . . . . . 3 . . Energy Discharges 7 | . . . . . . . 5 . 2 Parts Rejected 2 | . . . . . . . . . 2 Data Loss (minor) 3 | . . . . . . . 2 . 1 Data Loss (major) 1 | . . . . . . . 1 . . Misfires 3 | . . . . . . . 1 . 2 Overload Shots . | . . . . . . . . . . Overflow Damage 14 | . . . 4 4 . . 5 . 1 Projectiles 1 | . . . . . . . 1 . . Explosions 13 | . . . 4 4 . . 4 . 1 Melee . | . . . . . . . . . . Knockbacks . | . . . . . . . . . . Impact . | . . . . . . . . . . Kinetic . | . . . . . . . . . . Secondary . | . . . . . . . . . . Self-Inflicted Damage 206 | . . 41 18 61 . . 64 22 . Shots 8 | . . 2 1 2 . . 2 1 . Rammed 15 | . 1 2 3 2 . 6 1 . . Targets Rammed 15 | . 1 2 3 2 . 6 1 . . Kicked . | . . . . . . . . . . Crushed . | . . . . . . . . . . Highest Temperature 379 | 100 200 347 306 78 36 144 379 50 120 Average Temperature 60 | 48 45 74 54 25 21 64 95 20 31 Received Heat Transfer 2359 | . 198 186 570 12 . 12 765 234 382 Effects 6 | . . 1 4 . . . 1 . . Energy Bleed 1 | . . . . . . . 1 . . Interference 3 | . . . 3 . . . . . . Matter Decay 2 | . . 1 1 . . . . . . Siege Activations . | . . . . . . . . . . Martial Activations . | . . . . . . . . . . Shielding Activations . | . . . . . . . . . . Robots Disrupted 1 | . . . . . . . . . 1 Combat Hostiles . | . . . . . . . . . . Robots Corrupted 6 | . . . . . . . 4 1 1 Combat Hostiles 4 | . . . . . . . 3 1 . Parts Fried 33 | . . 1 1 . . . 10 12 9 Impact Corruptions . | . . . . . . . . . . Robots Melted 4 | . 1 . 3 . . . . . . Combat Hostiles 3 | . 1 . 2 . . . . . . Parts Melted 29 | . 3 6 10 . . . 8 1 1 Heat Transferred 12355 | 296 1796 2035 4747 50 . . 2622 80 729 Parts Sabotaged . | . . . . . . . . . . Parts Stolen . | . . . . . . . . . . Parts Stripped . | . . . . . . . . . . Power Chain Reactions 27 | . . . 3 1 . . 9 5 9 Alert | -11 -10 -10 -9 -9 -9 -8 -8 -8 -7 ------- Run | Yrd Mat Min Mat Min Exi Min Mat Sto Fac Maximum Alert Level 3 | . . . 2 . . . 2 2 3 Low Security (%) 61 | 100 100 100 33 100 . 100 40 48 . Level 1 13 | . . . 42 . . . 10 14 15 Level 2 19 | . . . 24 . . . 49 37 6 Level 3 5 | . . . . . . . . . 77 Level 4 . | . . . . . . . . . . Level 5 . | . . . . . . . . . . High Security . | . . . . . . . . . . Max Security . | . . . . . . . . . . Peak Influence 990 | 10 140 68 524 141 . 69 487 676 990 Initial 303 | . . . 3 94 . . . 201 303 Average 213 | 2 29 12 261 44 . 5 277 313 785 Influence Increases 6627 | 20 623 313 1233 267 . 69 1334 1427 1341 Destroy 0b10 Robot/C 3460 | . 320 180 740 160 . 20 720 640 680 Destroy 0b10 Robot/NC 425 | 20 60 25 80 5 . . 75 55 105 Destroy Leader 868 | . 70 40 222 30 . 10 202 156 138 Allied During Kill 513 | . . . . 22 . 6 12 349 124 Successful Hack 153 | . 42 . 67 . . . 15 29 . Disable Machine 360 | . 15 . 45 15 . 15 90 75 105 Anti-Garrison Action 300 | . . . . . . . 150 . 150 Destroy Structure 233 | . 11 38 19 35 . 18 40 33 39 Partial Spotted 15 | . . . 15 . . . . . . Lose Combat Pursuer 300 | . 105 30 45 . . . 30 90 . Influence Decreases 5687 | 20 623 302 1000 475 36 69 857 1235 1070 Entered New Map 836 | . . . 8 150 36 . . 276 366 Time Decay 3578 | 20 524 282 682 325 . 69 555 647 474 Lost Part 240 | . 20 20 10 . . . 80 . 110 Lost Ally 322 | . . . . . . . 40 162 120 Purge Threat 711 | . 79 . 300 . . . 182 150 . Squads Dispatched 36 | . 4 . 7 1 . . 7 5 12 Investigation 10 | . 2 . 5 . . . 1 1 1 Extermination 2 | . . . . . . . . . 2 Reinforcement 9 | . 2 . 2 1 . . 2 1 1 Assault 9 | . . . . . . . 4 2 3 Garrison 6 | . . . . . . . . 1 5 Intercept . | . . . . . . . . . . Searches Triggered . | . . . . . . . . . . Construction Impeded 2 | . . . . 1 . . . . 1 Haulers Reinforced . | . . . . . . . . . . Active Scanning Responses . | . . . . . . . . . . Cargo Convoy Interrupts 1 | . . . . . . . . . 1 Stealth | -11 -10 -10 -9 -9 -9 -8 -8 -8 -7 --------- Run | Yrd Mat Min Mat Min Exi Min Mat Sto Fac Distress Signals 12 | . 1 . 5 . . . 2 3 1 Communications Jammed . | . . . . . . . . . . Distress Signals . | . . . . . . . . . . Times Spotted 276 | . 37 15 56 8 . 1 57 43 59 Peak Tracking Total 15 | . 5 3 6 4 . 1 6 9 15 Tactical Retreats 13 | . 6 2 1 . . . 1 3 . Traps | -11 -10 -10 -9 -9 -9 -8 -8 -8 -7 ------- Run | Yrd Mat Min Mat Min Exi Min Mat Sto Fac Traps Triggered 7 | . 1 . 2 . . . . . 4 Indirectly 3 | . . . . . . . . . 3 Trap Hack Attempts . | . . . . . . . . . . Triggered . | . . . . . . . . . . Disarmed 1 | . . . . . . . . 1 . Reprogrammed . | . . . . . . . . . . Reused . | . . . . . . . . . . Traps Extracted . | . . . . . . . . . . Installed . | . . . . . . . . . . Triggered . | . . . . . . . . . . Machines | -11 -10 -10 -9 -9 -9 -8 -8 -8 -7 ---------- Run | Yrd Mat Min Mat Min Exi Min Mat Sto Fac Machines Disabled 26 | . 1 . 3 1 . 1 7 5 8 Max in Single Turn 5 | . 1 . 1 1 . . 1 2 5 Garrison Access 4 | . . . . . . . 1 1 2 Machines Repaired . | . . . . . . . . . . Machines Dismantled . | . . . . . . . . . . Machines Sabotaged . | . . . . . . . . . . Overloaded Fab Kills . | . . . . . . . . . . Hacking | -11 -10 -10 -9 -9 -9 -8 -8 -8 -7 --------- Run | Yrd Mat Min Mat Min Exi Min Mat Sto Fac Machines Accessed 58 | . 9 . 13 . 4 . 13 13 6 Terminals 37 | . 6 . 10 . . . 9 10 2 Fabricators . | . . . . . . . . . . Repair Stations 8 | . 1 . 1 . . . 2 2 2 Recycling Units 2 | . 2 . . . . . . . . Scanalyzers 4 | . . . 2 . . . 2 . . Garrison Access 3 | . . . . . . . . 1 2 Total Hacks 183 | . 25 . 42 . 30 . 42 33 11 Successful 108 | . 9 . 23 . 30 . 24 18 4 Failed 75 | . 16 . 19 . . . 18 15 7 Catastrophic 16 | . 6 . 2 . . . 3 3 2 Database Lockouts . | . . . . . . . . . . Manual 58 | . 9 . 17 . 1 . 19 8 4 Terminals 106 | . 19 . 32 . . . 30 20 5 Fabricators . | . . . . . . . . . . Repair Stations 24 | . 3 . 4 . . . 6 8 3 Recycling Units 3 | . 3 . . . . . . . . Scanalyzers 12 | . . . 6 . . . 6 . . Garrison Access 8 | . . . . . . . . 5 3 Terminal Hacks 64 | . 4 . 12 . 30 . 9 9 . Record 30 | . . . . . 30 . . . . Part Schematic 1 | . . . 1 . . . . . . Robot Analysis 2 | . . . . . . . 1 1 . Prototype ID Bank 2 | . . . 1 . . . 1 . . Open Door 5 | . . . . . . . . 5 . Alert Level 1 | . . . 1 . . . . . . Unreport Threat 7 | . 1 . 2 . . . 3 1 . Disarm Traps 1 | . . . . . . . . 1 . Transport Status 1 | . . . 1 . . . . . . Hauler Manifests 5 | . 1 . 2 . . . 1 1 . Registered Components 2 | . 1 . . . . . 1 . . Registered Prototypes 1 | . . . 1 . . . . . . Zone Layout 6 | . 1 . 3 . . . 2 . . Fabricator Hacks . | . . . . . . . . . . Repair Station Hacks 18 | . 2 . 2 . . . 6 6 2 Scan Component 9 | . 1 . 1 . . . 3 3 1 Repair 9 | . 1 . 1 . . . 3 3 1 Recycling Unit Hacks 2 | . 2 . . . . . . . . Retrieve Components 2 | . 2 . . . . . . . . Scanalyzer 8 | . . . 4 . . . 4 . . Insert Component 4 | . . . 2 . . . 2 . . Analyze 4 | . . . 2 . . . 2 . . Garrison Access Hacks 2 | . . . . . . . . 1 1 Seal Access 2 | . . . . . . . . 1 1 Unauthorized Hacks 14 | . 1 . 5 . . . 5 2 1 Terminals 14 | . 1 . 5 . . . 5 2 1 Assimilate 1 | . . . . . . . 1 . . Botnet 10 | . . . 4 . . . 3 2 1 Operators 3 | . 1 . 1 . . . 1 . . Fabricators . | . . . . . . . . . . Repair Stations . | . . . . . . . . . . Recycling Units . | . . . . . . . . . . Scanalyzers . | . . . . . . . . . . Garrison Access . | . . . . . . . . . . Data Cores Recovered 3 | . . . 1 . . . 1 . 1 Used 2 | . . . 1 . . . 1 . . Hacking Detections 47 | . 8 . 13 . . . 12 10 4 Full Trace Events 9 | . 3 . 3 . . . 1 1 1 Feedback Events . | . . . . . . . . . . Feedback Blocked . | . . . . . . . . . . Robot Schematics Acquired . | . . . . . . . . . . Robots Built . | . . . . . . . . . . Authchips . | . . . . . . . . . . Time . | . . . . . . . . . . Total Robot Build Rating . | . . . . . . . . . . Part Schematics Acquired 5 | . . . 3 . . . 2 . . Parts Built . | . . . . . . . . . . Authchips . | . . . . . . . . . . Time . | . . . . . . . . . . Total Part Build Rating . | . . . . . . . . . . Parts Repaired 9 | . 1 . 1 . . . 3 3 1 Time 311 | . 26 . 25 . . . 120 102 38 Parts Recycled . | . . . . . . . . . . Recycled Matter . | . . . . . . . . . . Retrieved Matter . | . . . . . . . . . . Retrieved Components 9 | . 9 . . . . . . . . Parts Scanalyzed 4 | . . . 2 . . . 2 . . Part Schematics Acquired 4 | . . . 2 . . . 2 . . Parts Damaged . | . . . . . . . . . . Bothacking | -11 -10 -10 -9 -9 -9 -8 -8 -8 -7 ------------ Run | Yrd Mat Min Mat Min Exi Min Mat Sto Fac Used RIF Installer . | . . . . . . . . . . Robots Hacked . | . . . . . . . . . . Non-combat . | . . . . . . . . . . Combat . | . . . . . . . . . . Robot Hacks Applied . | . . . . . . . . . . Relay Couplers Released 5 | . . . . . . . 2 . 3 Machine Destruction 5 | . . . . . . . 2 . 3 Fabnet Peak Effective % . | . . . . . . . . . . Robots Rewired 8 | . . . . . 5 . . . 3 Allies Hacked . | . . . . . . . . . . Hacks Repelled . | . . . . . . . . . . Allies | -11 -10 -10 -9 -9 -9 -8 -8 -8 -7 -------- Run | Yrd Mat Min Mat Min Exi Min Mat Sto Fac Total Allies 22 | . . . . 2 5 . . 12 3 Largest Group 12 | . . . . 2 5 4 4 12 9 Highest-Rated Group 235 | . . . . 46 53 45 45 235 172 Highest-Rated Ally 34 | . . . . 31 31 21 21 31 34 Total Orders 24 | . . . . . . . . 23 1 STAY 5 | . . . . . . . . 4 1 ROAM 2 | . . . . . . . . 2 . FOLLOW 4 | . . . . . . . . 4 . EXPLORE 8 | . . . . . . . . 8 . RETURN 5 | . . . . . . . . 5 . Ally Attacks 147 | . . . . 6 . 1 14 54 72 Total Damage 2933 | . . . . 42 . 259 190 752 1690 Kills 32 | . . . . 1 . 2 3 11 15 Allies Corrupted 1 | . . . . . . . . 1 . Allies Melted . | . . . . . . . . . . Intel | -11 -10 -10 -9 -9 -9 -8 -8 -8 -7 ------- Run | Yrd Mat Min Mat Min Exi Min Mat Sto Fac Active Infowar (turns) 15297 | 14 1864 377 3607 1103 1004 1000 2384 3170 774 Optics 108 | . 108 . . . . . . . . Sensors 12835 | . . . 3400 1103 1004 1000 2384 3170 774 Terrain 172 | . . 172 . . . . . . . Structural 2144 | . 1687 . 457 . . . . . . Seismic 313 | 14 67 205 27 . . . . . . T.N.C. 2 | . 2 . . . . . . . . Robot Analysis Total 2 | . . . . . . . 1 1 . Derelict Logs Recovered 3 | . . 1 . 2 . . . . . Drone Launches 31 | . . . . . . . . 31 . Drone Recoveries 15 | . . . . . . . . 15 . Exploration | -11 -10 -10 -9 -9 -9 -8 -8 -8 -7 ------------- Run | Yrd Mat Min Mat Min Exi Min Mat Sto Fac Turns Passed 19675 | 83 3359 1837 3804 1109 1004 1000 2835 3425 1219 Spaces Moved 10407 | 47 1812 973 2012 723 645 633 1384 1633 545 Core 1 | 1 . . . . . . . . . Treads 10243 | . 1695 973 2012 723 645 633 1384 1633 545 Legs . | . . . . . . . . . . Wheels 56 | 46 10 . . . . . . . . Hover 107 | . 107 . . . . . . . . Flight . | . . . . . . . . . . Fastest Speed 50 | 50 56 160 145 145 145 145 145 145 160 Average Speed 152 | 87 153 160 148 145 145 151 152 154 160 Slowest Speed 240 | 90 160 240 160 145 145 152 160 240 170 Overloaded Moves . | . . . . . . . . . . Propulsion Burnouts . | . . . . . . . . . . Robots Hopped . | . . . . . . . . . . Potential Cave-ins 2 | . . 2 . . . . . . . Cave-ins Triggered . | . . . . . . . . . . Exploration Rate (%) 79 | 4 99 100 99 98 93 100 92 93 17 Regions Visited 9 Branch Regions 5 Pre-discovered Areas 3 | . . . . 2 1 . . . . Known Exits Taken 7 | . . 1 1 1 1 1 1 1 . Unknown Exits Taken 2 | 1 1 . . . . . . . . Scrap Searched 4 | . . 1 . 2 . 1 . . . Spaces Dug 11 | . 4 . 7 . . . . . . Terrain Destroyed 185 | . 10 52 18 46 . . 32 20 7 Melee . | . . . . . . . . . . Projectile 4 | . 4 . . . . . . . . AOE 181 | . 6 52 18 46 . . 32 20 7 Terrain Rammed . | . . . . . . . . . . Walls Destroyed . | . . . . . . . . . . Machines Disabled . | . . . . . . . . . . Actions | -11 -10 -10 -9 -9 -9 -8 -8 -8 -7 --------- Run | Yrd Mat Min Mat Min Exi Min Mat Sto Fac Total 13231 | 69 2219 1151 2583 768 712 660 1889 2421 759 Wait 1540 | . 240 98 284 29 5 7 265 589 23 Move 10398 | 46 1811 972 2011 722 644 632 1383 1632 545 Hop . | . . . . . . . . . . Pick Up 143 | 7 19 4 37 . 1 1 32 32 10 Fast Attach 34 | 6 9 2 4 . . . 8 4 1 Attach 40 | 1 3 5 5 . . . 14 5 7 Detach 5 | . 1 1 . . . . 3 . . Swap 194 | . 22 10 48 6 1 5 41 33 28 Drop 156 | . 26 4 49 . 1 4 32 28 12 Fire 587 | 9 87 53 142 9 1 5 110 74 97 Melee . | . . . . . . . . . . Ram . | . . . . . . . . . . Kick . | . . . . . . . . . . Crush 15 | . 1 2 3 2 . 6 1 . . Escape Stasis . | . . . . . . . . . . Rewire 111 | . . . . . 59 . . 16 36 Trap . | . . . . . . . . . . Miscellaneous 8 | . . . . . . . . 8 . Route ------- -11/Scrapyard -10/Materials (discovered 5 exits: *Mat x3 / [*Min] / *Sub) -10/Mines (discovered 3 exits: *Mat x2 / *Sub) -9/Materials (discovered 4 exits: *Mat x3 / *Min) -9/Mines (discovered 3 exits: *Mat x2 / *Exi) -9/Exiles (discovered 2 exits: *Min x2) -8/Mines (discovered 2 exits: *Mat x2) -8/Materials (discovered 4 exits: *Fac x2 / *Sto x2) -8/Storage (discovered 2 exits: *Fac / *Rec) -7/Factory (discovered 2 exits: *Fac x2) History --------- Turn | Location | Event 23 | -11/Scrapyard | Discovered new exit (range 15) 84 | -11/Scrapyard | Entered Materials 315 | -10/Materials | Build established: Mutant 448 | -10/Materials | Discovered new exit (range 7) 605 | -10/Materials | Discovered new exit (range 5) 942 | -10/Materials | Repaired Med. Laser 975 | -10/Materials | Discovered new exit (range 10) 1223 | -10/Materials | Discovered new exit (range 15) 1609 | -10/Materials | Discovered new exit (range 9) 3443 | -10/Materials | Entered Mines 3576 | -10/Mines | Discovered new exit (range 5) 3804 | -10/Mines | Assembled infested the area 3885 | -10/Mines | Received a Rocket Launcher from a helpful Derelict 3899 | -10/Mines | Core integrity fell below 50% 4070 | -10/Mines | Discovered new exit (range 14) 4091 | -10/Mines | Learned location of 1 exit from Materials 4182 | -10/Mines | Core integrity fell below 20% 5119 | -10/Mines | Identified exit to Materials 5212 | -10/Mines | Discovered new exit (range 12) 5231 | -10/Mines | Identified exit to Subcaves 5280 | -10/Mines | Entered Materials 5280 | -9/Materials | Evolved 2 slots: Utility x2 5281 | -9/Materials | Identified exit to Materials 5904 | -9/Materials | Discovered exit to Materials (range 15) 6855 | -9/Materials | Discovered new exit (range 11) 7258 | -9/Materials | Discovered exit to Materials (range 10) 7380 | -9/Materials | Core integrity fell below 50% 7574 | -9/Materials | Repaired Imp. EM Shotgun 9058 | -9/Materials | Identified exit to Mines 9084 | -9/Materials | Entered Mines 9125 | -9/Mines | Learned location of Zion (-6) 9390 | -9/Mines | Learned location of Storage (-8) 9697 | -9/Mines | Discovered exit to Materials (range 7) 9812 | -9/Mines | Discovered exit to Materials (range 10) 10180 | -9/Mines | Deemed a non-threat by the Exiles lab entrance 10181 | -9/Mines | Discovered new exit (range 5) 10186 | -9/Mines | Identified exit to Exiles 10193 | -9/Mines | Entered Exiles 10193 | -9/Exiles | Found Exiles lab destroyed 10193 | -9/Exiles | Accompanied by 2 allies 10223 | -9/Exiles | Led the pair of lost Derelicts to a safe place 10223 | -9/Exiles | Discovered new exit (range 14) 10240 | -9/Exiles | Identified exit to Mines 10922 | -9/Exiles | Build established: Commander-Mutant 11179 | -9/Exiles | Discovered exit to Mines (range 10) 11197 | -9/Exiles | Entered Mines 11197 | -8/Mines | Accompanied by 5 allies 11244 | -8/Mines | Found a Scrap Suit stashed away for nefarious purposes 11249 | -8/Mines | Found Scrap Suit 11518 | -8/Mines | Found DCF Scrap (11 items) 11539 | -8/Mines | Discovered exit to Materials (range 9) 11686 | -8/Mines | Discovered exit to Materials (range 9) 12197 | -8/Mines | Entered Materials 12197 | -8/Materials | Accompanied by 4 allies 12197 | -8/Materials | Evolved 2 slots: Utility x2 12333 | -8/Materials | Lost 4 allies 12569 | -8/Materials | Build established: Mutant 13162 | -8/Materials | Discovered new exit (range 13) 13194 | -8/Materials | Identified exit to Factory 13479 | -8/Materials | Destroyed 8 combat bots 13797 | -8/Materials | First assault squad dispatched 13814 | -8/Materials | Discovered exit to Factory (range 16) 13873 | -8/Materials | Repaired Imp. Light Armor Plating 14090 | -8/Materials | Lost 3 parts (1p2n) 14124 | -8/Materials | Repaired Imp. Light Armor Plating 14292 | -8/Materials | Discovered new exit (range 16) 14312 | -8/Materials | Identified exit to Storage 14726 | -8/Materials | Discovered exit to Storage (range 12) 14899 | -8/Materials | Repaired Gauss Rifle? 15032 | -8/Materials | Entered Storage 15033 | -8/Storage | Identified exit to Recycling 15828 | -8/Storage | Discovered exit to Factory (range 13) 16496 | -8/Storage | Assisted by bots powering up and referring to "LRC-V3" 16625 | -8/Storage | Garrison activated, responded to threat 16765 | -8/Storage | Repaired Adv. Treads 16805 | -8/Storage | Build established: Commander-Mutant 16907 | -8/Storage | Repaired Adv. Treads 16945 | -8/Storage | Used back door to open Recycling access 17054 | -8/Storage | Met a pair of Derelict thieves 17184 | -8/Storage | Destroyed 7 combat bots 18417 | -8/Storage | Repaired Lrg. Storage Unit 18457 | -8/Storage | Entered Factory 18457 | -7/Factory | Accompanied by 9 allies 18457 | -7/Factory | Evolved 2 slots: Power x1, Propulsion x1 18674 | -7/Factory | Lost 6 allies 18823 | -7/Factory | Discovered new exit (range 9) 18836 | -7/Factory | Identified exit to Factory 18875 | -7/Factory | P-60 Hacker assimilated allied Trooper 4a 18934 | -7/Factory | Build established: Mutant 18978 | -7/Factory | Discovered exit to Factory (range 14) 19171 | -7/Factory | Repaired Hardlight Generator? 19599 | -7/Factory | Cargo convoy interrupted 19645 | -7/Factory | Core integrity fell below 50% 19657 | -7/Factory | First assault squad dispatched 19667 | -7/Factory | Core integrity fell below 20% 19676 | -7/Factory | Destroyed by H-55 Commando with Gauss Rifle Last Messages --------------- 19670_ Slug penetrates U-05 Engineer. 19671_ System corrupted: Gauss Rifle rejected. 19671_ U-05 Engineer builds a Door. 19672_ Gauss Rifle destroyed. 19672_ Penetrated by Slug. 19673_ Slug penetrates Wall. 19674_ Critical hit (Burn: +37). 19674_ Chain reaction triggered in Corrupted Nuclear Core. 19674_ Chain reaction triggered in Corrupted Mic. Nuclear Core. 19674_ I-36 Angel destroyed. 19674_ U-05 Engineer destroyed. 19675_ C-30 ARC bursts open, deploying its payload. 19675_ G-50 Soldier unfolds itself. 19675_ B-48 Gladiator unfolds itself. 19675_ M-28 Smith unfolds itself. 19675_ U-05 Engineer destroyed. 19676_ Penetrated by Slug. Map ----- +----------------------------------------------------+ | ??^??????????????????????????????????? | | ###????????????????????????????????????? | | ##### #??????????????????????????????????????? | | #???#######??????????????????????????????????????? | | #????????????????????????????????????????????????? | | #????????????????????????????????????????????????? | | #????????????????????????????????????????????????? | | #########????????????????????????????????????????? | | #????????????????????????????????????????? | | ### "????????????????????????????????????? | | / ???????????????????????????????????? | | ###??????????????????????????????????????? | | #????????????????????????????????????????? | | ### #????????????????????????????????????????? | | ??? #????????????????##????????????????????? | | ???? #???????????????? #????????????????????? | | ???? ? ??????#?????? #????????????????????? | | ????? ?????# ???? #????????????????????? | | ????? ???# ???? #?####+####??????????? | | ?????? ? ??# ??? #?# #??????????? | | ???????? ## ??? #?# #??????????? | | ###?????????? ?? ??# #??????????? | | #???????????? ##+####u +??????????? | | #????????????"" "" %=| u #??????????? | | #???????????""" !Y" !=%= #??????????? | | #???????????"""=!! !=@/ #??????????? | | #????????"" r*%h ! #??????????? | | #????????"" g!=[% !u #??????????? | | #???????? g gp]h*!| #??????????? | | #???????? %!xi/!%[= #??????????? | | #?????? g bm=/!!![[== % #??????????? | | ####### bb|%/[!%[########## ############ | | m i!=/![!?????????# *= | | [%!/%=#?######## = = | | % =!?# # " == | | % # ?# """ ] # ### | | #############?##### ?# """ # !] #?? | | ## ?????????# ??# """ + ! #?? | | # """" #???????+ ??# "" # #?? | | # """" [#???????# ??# """ """## """ """ #?? | | + """" #???????# #??# """ R"## """ """ #?? | | # """" ######### #??# """ """## """ """ ##? | | # """" ## """ *# #??# ## ! | | ## """" ## """!/#/###########+## | | ## """" ## """/!" ! | | ## ## /#/ ##+######## ### | | ############ ! !#= # ?????# #############?? | | #??????????# *# # ???# #?????????????? | | #??????????######## # ?# #?????????????? | | #?????????????????# # ## #?????????????? | +----------------------------------------------------+ Best States ------------- Heat Dissipation 53 Energy Generation 25 Energy Capacity 470 Matter Stores 300 Matter Capacity 300 Sight Range 18 Robot Scan Range 15 Terrain Scan Range 16 Terrain Scan Density 10 Base Temperature (-) 100 Armor Coverage 225 Core Shielding 20 Evasion (%) 53 Targeting Accuracy 8 Recoil Reduction 6 Salvage Targeting 4 Offensive Hacking 10 Item Schematics ----------------- Imp. Light Cannon | -9/Materials | Hacked Adv. Treads | -9/Materials | Scanalyzed Cld. Ion Engine | -9/Materials | Scanalyzed Imp. EM Shotgun | -8/Materials | Scanalyzed Imp. Light Armor Plating | -8/Materials | Scanalyzed Robot Schematics ------------------ None Fabricated ------------ Nothing Repaired ---------- Med. Laser | 31% | -10/Materials Imp. EM Shotgun | 34% | -9/Materials Imp. Light Armor Plating | 23% | -8/Materials Imp. Light Armor Plating | 1% | -8/Materials Gauss Rifle | 55% | -8/Materials Adv. Treads | 38% | -8/Storage Adv. Treads | 24% | -8/Storage Lrg. Storage Unit | 66% | -8/Storage Hardlight Generator | 50% | -7/Factory Alien Tech Used ----------------- None Achievements -------------- None Challenges ------------ None Game ------ Seed ClaymoresMissileBiocell Manual? 0 Play Time 03:26:14 Cumulative 110.8 hours Start 2025.05.30 @ 14:51:12 End 2025.05.30 @ 18:31:38 Sessions 1 Manual Loads 0 Difficulty Rogue Special Mode None Game No. 85 Rogue 85 Adventurer 0 Explorer 0 Win Type - Total 1 Types 1/0/0/0/0/0/0/0/0/0 Lore% 37 Gallery% 43 Achievement% 40 Wizard Run 0 Options --------- Layout 1 ASCII 0 Keyboard 0 Movement Mouse Keybinds 0 Fullscreen 1 Font 24/Smallcaps Map View 50x35 Zoom Use 0% Tactical HUD 1 Map Filters NONE Filters NONE Steam 1 RUN: 2908d3fd-1006-40df-bbb0-ef15b0a7521c